bitfinex-derivatives/quotes_ETHF0:USTF0_20210102
["timestamp","ask_amount","ask_price","bid_price","bid_amount"]
[1609606176030,10.43438,770.17,769.8,26.71713378]
[1609606177331,4.42,770.17,769.99,6.01438]
[1609606177832,4.42,770.17,769.99,29.58025575]
[1609606178732,4.42,770.17,770.13,23.53643602]
[1609606180533,6.01438,770.59,770.13,23.53643602]
[1609606181235,6.01438,770.14,769.98,26.67462749]
[1609606182336,0.3367,769.98,769.85,29.75455668]
[1609606182638,4.9587,769.98,769.85,29.75455668]
[1609606182837,4.9587,769.98,769.37,29.79663269]
[1609606183237,10.97308,769.98,769.88,6.01438]
[1609606183437,4.9587,769.98,769.88,6.01438]
[1609606183836,4.9587,769.98,769.29,29.81137235]
[1609606184438,4.9587,769.98,768.83,3.49]
[1609606184439,4.9587,769.98,769.54,29.67095274]
[1609606185239,6.01438,769.93,769.66,6.01438]
[1609606186440,4.9587,769.98,769.66,6.01438]
[1609606187239,4.9587,769.98,769.97,6.01438]
[1609606187440,4.9587,769.98,769.56,29.68913789]
[1609606188841,4.9587,769.98,769.63,29.67252902]
[1609606189242,6.01438,769.94,769.66,6.01438]
[1609606189943,6.01438,769.94,769.63,29.67252902]
[1609606190544,6.01438,769.94,766.79,15.0]
[1609606190545,6.01438,769.94,769.61,29.69610802]
[1609606191246,6.01438,769.62,769.61,29.69610802]
[1609606191446,9.23238,769.62,769.61,29.69610802]
[1609606191646,9.23238,769.62,769.27,29.75325689]
[1609606192046,3.218,769.62,769.27,29.75325689]
[1609606192446,3.218,769.62,767.27,15.0]
[1609606192447,3.218,769.62,769.36,29.76136074]
[1609606193246,3.218,769.62,769.61,6.01438]
[1609606195048,3.218,769.62,769.61,35.72331632]
[1609606196548,4.9587,769.98,769.61,35.72331632]
[1609606197349,4.9587,769.98,769.7,6.01438]
[1609606198651,4.9587,769.98,769.56,29.66872997]
[1609606199252,6.01438,769.89,769.6,6.01438]
[1609606199451,4.9587,769.98,769.6,6.01438]
[1609606199853,4.9587,769.98,769.81,26.49722799]
[1609606200961,4.9587,769.98,769.85,26.47293848]
[1609606203259,6.01438,769.86,769.85,26.47293848]
[1609606203460,6.01438,769.86,769.77,26.51920232]
[1609606205362,6.01438,769.78,769.77,26.51920232]
[1609606205563,10.30638,769.78,769.77,26.51920232]
[1609606206164,10.30638,769.78,769.19,6.01438]
[1609606207363,6.01438,769.46,769.42,6.01438]
[1609606207563,9.83138,769.46,769.42,6.01438]
[1609606207963,3.817,769.46,769.42,6.01438]
[1609606209066,3.817,769.46,768.45,11.731]
[1609606209468,3.817,769.46,769.36,6.01438]
[1609606211468,3.817,769.46,769.45,6.01438]
[1609606211669,4.292,769.78,769.45,6.01438]
[1609606211870,4.9587,769.98,769.45,6.01438]
[1609606212471,4.622,769.98,769.45,6.01438]
[1609606212672,11.8985,770.93,769.45,6.01438]
[1609606212871,4.64323382,771.07,769.45,6.01438]
[1609606213473,4.64323382,771.07,769.08,4.472]
[1609606213474,4.64201491,771.1,769.98,6.01438]
[1609606214976,4.64055971,771.31,769.98,6.01438]
[1609606215376,6.01438,770.49,770.25,6.01438]
[1609606215981,3.601,770.61,770.25,6.01438]
[1609606217376,6.01438,770.57,770.4,6.01438]
[1609606217578,3.601,770.61,770.4,6.01438]
[1609606219384,3.601,770.61,769.63,4.345]
[1609606219385,3.601,770.61,770.58,6.01438]
[1609606220587,4.6401674,771.53,770.58,6.01438]
[1609606221388,6.01438,771.05,770.83,6.01438]
[1609606221589,9.03938,771.05,770.83,6.01438]
[1609606223488,9.03938,771.05,770.97,6.01438]
[1609606223688,3.025,771.05,770.97,6.01438]
[1609606223893,3.025,771.05,769.88,4.125]
[1609606225390,3.025,771.05,770.71,6.01438]
[1609606226692,6.01438,771.07,770.71,6.01438]
[1609606227491,6.01438,771.07,771.06,6.01438]
[1609606229293,4.63917003,772.03,771.06,6.01438]
[1609606230791,4.6373953,772.12,771.06,6.01438]
[1609606231391,6.01438,771.95,771.58,6.01438]
[1609606231591,9.70038,771.95,771.58,6.01438]
[1609606232393,3.686,771.95,771.58,6.01438]
[1609606233394,3.686,771.95,771.84,6.01438]
[1609606233994,4.63622389,772.29,771.84,6.01438]
[1609606234595,2.73291831,772.55,771.84,6.01438]
[1609606235395,6.01438,772.45,772.06,6.01438]
[1609606235596,10.51938,772.45,772.06,6.01438]
[1609606237398,10.51938,772.45,771.27,4.253]
[1609606237399,10.51938,772.45,772.27,6.01438]
[1609606239200,4.505,772.45,772.27,6.01438]
[1609606239399,4.505,772.45,772.44,6.01438]
[1609606240500,6.01438,772.98,772.44,6.01438]
[1609606241501,6.01438,772.75,771.86,26.17143263]
[1609606241702,10.36738,772.75,771.86,26.17143263]
[1609606241902,10.36738,772.75,772.07,23.09401849]
[1609606243104,4.353,772.75,772.07,23.09401849]
[1609606243305,4.353,772.75,772.22,20.00898705]
[1609606243504,4.353,772.75,772.62,6.01438]
[1609606244503,4.353,772.75,772.28,19.99184407]
[1609606245404,4.353,772.75,772.74,6.01438]
[1609606246004,4.353,772.75,772.5,19.94997034]
[1609606246905,4.353,772.75,709.48,2.02929469]
[1609606246906,4.817,772.75,772.54,19.92755538]
[1609606247504,4.817,772.75,772.67,6.01438]
[1609606248706,4.817,772.75,772.5,19.93479793]
[1609606249508,4.817,772.75,772.64,6.01438]
[1609606249708,4.817,772.75,772.5,19.93479793]
[1609606250409,4.817,772.75,772.47,19.91822012]
[1609606251210,4.817,772.75,772.64,19.8769296]
[1609606251809,2.73002577,773.69,772.64,19.8769296]
[1609606252511,2.72961111,773.65,772.6,19.87850482]
[1609606252709,5.99061111,773.65,772.6,19.87850482]
[1609606253514,6.01438,773.01,772.65,6.01438]
[1609606253712,9.27438,773.01,772.65,6.01438]
[1609606253912,9.27438,773.01,772.78,16.8164535]
[1609606254311,3.26,773.01,772.78,16.8164535]
[1609606255118,3.26,773.01,772.88,16.79731119]
[1609606255516,3.26,773.01,773.0,6.01438]
[1609606257219,3.26,773.01,772.88,16.79731119]
[1609606257620,3.26,773.01,772.91,6.01438]
[1609606258018,3.26,773.01,772.88,16.79731119]
[1609606258621,3.26,773.01,772.85,19.84529499]
[1609606258818,4.356,773.01,772.85,19.84529499]
[1609606259418,4.356,773.01,772.85,3.98929499]
[1609606259618,6.01438,772.86,772.85,3.98929499]
[1609606260018,6.01438,772.86,772.7,22.8984173]
[1609606260422,6.01438,772.86,772.43,22.96862357]
[1609606261321,6.01438,772.86,772.14,23.05617546]
[1609606261520,6.01438,772.28,772.14,23.05617546]
[1609606261720,3.139,772.28,772.14,23.05617546]
[1609606263025,4.356,773.01,772.14,23.05617546]
[1609606263224,3.331,772.33,772.14,23.05617546]
[1609606263424,3.331,772.33,772.15,23.09102546]
[1609606263625,3.331,772.33,772.32,6.01438]
[1609606264225,10.37038,773.01,772.32,6.01438]
[1609606264426,4.356,773.01,772.32,6.01438]
[1609606264625,2.73028442,773.68,772.32,9.83638]
[1609606264926,2.72939915,773.84,772.32,38.96203243]
[1609606265527,6.01438,773.32,772.97,6.01438]
[1609606265727,4.81,773.32,772.97,6.01438]
[1609606266731,2.72869283,774.01,772.97,6.01438]
[1609606266931,3.16370182,774.19,772.97,6.01438]
[1609606266932,2.72836694,774.43,773.2,22.88917987]
[1609606267533,6.01438,773.74,773.54,6.01438]
[1609606267732,9.37638,773.74,773.54,6.01438]
[1609606268233,9.37638,773.74,773.2,22.88917987]
[1609606268836,9.37638,773.74,773.12,22.89713196]
[1609606269234,2.5832,773.73,773.12,22.89713196]
[1609606269634,2.5832,773.73,773.72,6.01438]
[1609606269835,3.362,773.74,773.72,6.01438]
[1609606271040,2.7275866,774.41,773.72,6.01438]
[1609606271637,2.7275866,774.41,773.88,6.01438]
[1609606271837,2.7275866,774.41,773.34,19.83249582]
[1609606272039,7.90604813,774.64,773.19,27.61364903]
[1609606272040,10.49638,774.36,773.6,19.79879852]
[1609606272637,10.49638,774.36,773.5,19.81655904]
[1609606272839,10.49638,774.36,773.56,19.80922986]
[1609606273638,6.01438,773.64,773.59,6.01438]
[1609606273839,6.01438,773.64,773.56,19.80922986]
[1609606274038,6.01438,773.64,773.5,19.81799987]
[1609606274438,9.47438,773.64,773.5,19.81799987]
[1609606274639,9.47438,773.64,773.18,19.8705115]
[1609606275339,3.46,773.64,773.18,19.8705115]
[1609606275741,3.46,773.64,773.63,6.01438]
[1609606276741,3.46,773.64,773.17,19.85891881]
[1609606276941,2.5805,773.63,773.17,19.85891881]
[1609606277341,3.46,773.64,773.17,19.85891881]
[1609606277642,3.46,773.64,773.53,6.01438]
[1609606277843,2.564,773.63,773.53,6.01438]
[1609606278645,3.46,773.64,773.53,6.01438]
[1609606279047,3.46,773.64,773.17,19.85891881]
[1609606279445,3.921,773.8,773.17,19.85891881]
[1609606279646,4.261,773.64,773.5,6.01438]
[1609606280646,2.5464,773.63,773.5,6.01438]
[1609606281446,4.261,773.64,773.5,6.01438]
[1609606281648,4.261,773.64,773.63,6.01438]
[1609606281847,4.261,773.64,773.28,19.84147716]
[1609606282547,4.261,773.64,773.5,19.79877951]
[1609606283649,4.261,773.64,773.63,6.01438]
[1609606283849,4.261,773.64,773.5,19.79877951]
[1609606284050,4.261,773.64,773.45,19.77609685]
[1609606284648,6.01438,774.03,773.45,19.77609685]
[1609606284852,4.917,773.64,773.45,19.77609685]
[1609606285050,4.917,773.64,773.36,19.76099316]
[1609606285649,6.01438,773.37,773.36,19.76099316]
[1609606285850,6.01438,773.37,773.1,19.78645805]
[1609606286752,6.01438,773.37,772.98,19.80311449]
[1609606287550,6.01438,773.37,772.97,19.79501775]
[1609606287750,6.01438,772.99,772.97,19.79501775]
[1609606288352,6.01438,772.99,772.62,6.01438]
[1609606288353,2.617,772.98,772.85,19.80049425]
[1609606288551,6.01438,772.99,772.85,19.80049425]
[1609606289553,6.01438,772.99,772.85,15.11649425]
[1609606289753,6.01438,772.86,772.57,22.871954]
[1609606290353,2.6248,772.85,772.57,22.871954]
[1609606290557,2.6248,772.85,772.56,4.419]
[1609606291753,3.773,773.25,772.56,4.419]
[1609606292053,3.773,773.25,772.54,22.87769506]
[1609606293055,3.773,773.25,772.36,6.01438]
[1609606293056,3.773,773.25,772.59,22.84046094]
[1609606293655,6.01438,772.86,772.59,22.84046094]
[1609606294256,6.01438,772.86,772.48,22.81003782]
[1609606294755,3.891,772.9,772.48,22.81003782]
[1609606295356,3.891,772.9,772.49,22.80691008]
[1609606295656,3.891,772.9,772.72,6.01438]
[1609606296258,3.891,772.9,772.62,22.79830655]
[1609606296659,3.891,772.9,772.6,22.80278955]
[1609606297258,3.773,773.25,772.6,22.80278955]
[1609606297458,20.54523435,774.1,772.54,22.81275183]
[1609606297459,2.72917866,773.77,772.54,22.81275183]
[1609606297659,6.01438,773.25,772.85,6.01438]
[1609606297857,9.75438,773.25,772.85,6.01438]
[1609606298459,3.74,773.25,772.85,6.01438]
[1609606299060,3.74,773.25,772.65,22.81474689]
[1609606299260,3.74,773.25,772.73,22.80063447]
[1609606299660,3.74,773.25,772.83,6.01438]
[1609606300366,3.74,773.25,772.92,19.75449476]
[1609606301462,3.74,773.25,772.98,19.81334051]
[1609606301664,3.74,773.25,773.14,6.01438]
[1609606302562,3.74,773.25,772.98,19.81334051]
[1609606302763,3.74,773.25,773.05,19.80317674]
[1609606302962,6.01438,773.55,773.05,19.80317674]
[1609606303663,6.01438,773.55,773.08,6.01438]
[1609606303862,6.01438,773.55,773.05,19.80317674]
[1609606304264,6.01438,773.55,772.98,19.81635164]
[1609606305664,6.01438,773.55,773.23,6.01438]
[1609606307766,6.01438,773.46,773.35,6.01438]
[1609606309168,6.01438,773.46,773.19,19.82708326]
[1609606309667,6.01438,773.2,773.19,19.82708326]
[1609606311469,3.039,773.8,773.19,19.82708326]
[1609606311669,18.039,773.8,773.19,19.82708326]
[1609606311870,6.01438,773.39,773.19,19.82708326]
[1609606313071,6.01438,773.39,773.24,19.81599702]
[1609606313671,4.056,773.59,773.25,6.01438]
[1609606315673,6.01438,773.41,773.25,6.01438]
[1609606316776,9.93138,773.41,773.25,6.01438]
[1609606317177,9.93138,773.41,772.76,4.833]
[1609606317178,9.93138,773.41,773.01,19.76310498]
[1609606317476,15.0,773.4,773.01,19.76310498]
[1609606317877,6.01438,773.02,773.01,19.76310498]
[1609606318377,6.01438,773.02,772.88,19.77006548]
[1609606318980,15.0,773.01,772.88,12.07486548]
[1609606319179,15.0,773.01,770.38,15.0]
[1609606319180,15.0,773.01,772.52,22.84787737]
[1609606319781,6.01438,772.53,772.52,22.84787737]
[1609606319981,6.01438,772.53,772.36,48.77182024]
[1609606320181,15.0,772.76,772.36,22.87755922]
[1609606320782,15.0,772.76,772.23,6.01438]
[1609606321783,15.0,772.75,772.23,6.01438]
[1609606321982,3.656,772.77,772.23,6.01438]
[1609606322484,18.656,772.77,772.23,6.01438]
[1609606323483,3.656,772.77,772.23,6.01438]
[1609606323684,18.656,772.77,772.23,6.01438]
[1609606323885,6.01438,772.44,772.23,22.86974849]
[1609606324986,6.01438,772.44,771.91,4.372]
[1609606324987,6.01438,772.44,772.24,22.87351005]
[1609606325184,15.0,772.43,772.24,22.87351005]
[1609606325884,6.01438,772.25,772.24,22.87351005]
[1609606326092,21.01438,772.25,772.1,22.896929]
[1609606326889,21.01438,772.25,772.1,16.82617014]
[1609606327085,15.0,772.24,772.1,16.82617014]
[1609606327789,6.01438,772.11,772.1,16.82617014]
[1609606327987,21.01438,772.11,772.1,16.82617014]
[1609606328388,21.01438,772.11,772.07,16.83463656]
[1609606329993,24.58838,772.11,772.07,16.83463656]
[1609606330792,24.58838,772.11,772.07,9.20653656]
[1609606331092,24.58838,772.11,771.77,22.95632259]
[1609606331699,24.58838,772.11,771.74,19.91958647]
[1609606331896,6.01438,771.78,771.74,19.91958647]
[1609606332097,15.0,771.77,771.74,19.91958647]
[1609606332497,15.0,771.77,771.04,30.64551764]
[1609606332498,15.0,771.77,771.37,19.98289149]
[1609606333297,108.6356,771.71,771.37,19.98289149]
[1609606333498,15.0,771.7,771.37,19.98289149]
[1609606333898,6.01438,771.38,771.37,19.98289149]
[1609606334098,21.01438,771.38,771.31,19.99444822]
[1609606335099,2.5649,771.37,771.31,19.99444822]
[1609606335500,2.5649,771.37,770.98,20.08313465]
[1609606335701,4.64,771.53,770.98,20.08313465]
[1609606335899,4.64,771.53,771.36,6.01438]
[1609606336702,2.73417155,772.13,771.36,6.01438]
[1609606337901,6.01438,771.85,771.84,6.01438]
[1609606338101,6.01438,771.85,771.33,4.508]
[1609606338102,6.01438,771.85,771.46,20.01752782]
[1609606338702,6.01438,771.85,771.74,19.98619418]
[1609606338901,6.01438,771.85,771.74,23.50319418]
[1609606339304,21.01438,771.85,771.76,19.98767351]
[1609606339503,6.01438,771.85,771.76,19.98767351]
[1609606339704,15.0,772.25,771.76,19.98767351]
[1609606340305,15.0,772.43,771.76,19.98767351]
[1609606340508,15.0,772.43,771.74,3.517]
[1609606341309,15.0,772.43,772.03,16.89639315]
[1609606341508,15.0,772.42,772.03,16.89639315]
[1609606341708,4.203,772.44,772.03,16.89639315]
[1609606341909,6.01438,772.24,772.03,16.89639315]
[1609606342511,2.6101,772.43,772.03,16.89639315]
[1609606342910,4.203,772.44,772.03,16.89639315]
[1609606343113,15.0,772.44,772.03,16.89639315]
[1609606343910,6.01438,772.23,772.02,16.89219898]
[1609606344510,2.5528,772.22,772.02,16.89219898]
[1609606344710,15.0,772.21,772.02,16.89219898]
[1609606345312,15.0,772.21,772.12,16.86714797]
[1609606345713,15.0,772.2,772.12,16.86714797]
[1609606345915,6.01438,772.13,772.12,16.86714797]
[1609606346112,24.16838,772.13,772.12,16.86714797]
[1609606347513,24.16838,772.13,771.76,16.92232975]
[1609606347812,6.01438,771.77,771.76,16.92232975]
[1609606348012,21.01438,771.77,771.76,16.92232975]
[1609606348216,24.13438,771.77,771.32,16.97484005]
[1609606348814,77.3663,771.69,771.32,16.97484005]
[1609606349013,15.0,771.68,771.32,16.97484005]
[1609606349214,15.0,771.68,771.41,16.95954775]
[1609606349815,6.01438,771.42,771.41,16.95954775]
[1609606350015,21.01438,771.42,771.41,16.95954775]
[1609606350417,21.01438,771.42,771.2,16.98613903]
[1609606351417,21.01438,771.42,771.3,16.97546571]
[1609606351618,6.01438,771.42,771.3,16.97546571]
[1609606351816,6.01438,771.31,771.3,16.97546571]
[1609606352417,6.01438,771.31,705.99,2.02929469]
[1609606352418,21.01438,771.31,771.19,16.98797952]
[1609606353420,6.01438,771.31,771.19,20.08946255]
[1609606353819,6.01438,771.2,771.19,20.08946255]
[1609606354821,15.0,771.6,771.16,23.15778906]
[1609606355322,2.5601,771.59,771.16,23.15778906]
[1609606355521,15.0,771.58,771.16,23.15778906]
[1609606355922,6.01438,771.24,771.16,23.15778906]
[1609606356322,15.0,771.58,771.16,23.15778906]
[1609606356522,4.48,771.61,771.17,23.15694124]
[1609606356721,2.5861,771.72,771.17,23.15694124]
[1609606356922,15.0,771.71,771.17,23.15694124]
[1609606357923,6.01438,771.18,771.17,23.15694124]
[1609606358126,21.01438,771.18,771.17,23.15694124]
[1609606359933,23.63158,771.18,771.17,23.15694124]
[1609606360134,21.01438,771.18,771.17,23.15694124]
[1609606361037,23.59118,771.18,771.17,23.15694124]
[1609606361435,21.01438,771.18,771.17,23.15694124]
[1609606362237,21.01438,771.18,771.01,26.24453341]
[1609606362238,21.01438,771.18,771.1,26.25471273]
[1609606363237,21.01438,771.18,770.05,6.01438]
[1609606363238,21.01438,771.18,770.97,17.04754986]
[1609606363838,20.61438,771.18,770.97,17.04754986]
[1609606364038,6.01438,770.98,770.97,17.04754986]
[1609606364238,21.01438,770.98,770.97,17.04754986]
[1609606364940,21.01438,770.98,770.92,17.01667581]
[1609606365540,21.01438,770.98,770.89,17.0135146]
[1609606365941,6.01438,770.9,770.89,17.0135146]
[1609606366142,21.01438,770.9,770.89,17.0135146]
[1609606366641,21.01438,770.9,770.87,17.01618539]
[1609606367240,21.01438,770.9,770.41,26.29774106]
[1609606367941,6.01438,770.54,770.42,6.01438]
[1609606368140,21.01438,770.54,770.41,26.29774106]
[1609606368348,21.01438,770.54,770.5,26.2842601]
[1609606370550,13.08238775,770.54,770.5,23.22105497]
[1609606370747,13.08238775,770.53,770.5,23.22105497]
[1609606371746,3.313,770.89,770.5,23.22105497]
[1609606371747,13.08238775,770.88,770.5,23.22105497]
[1609606371949,3.313,770.89,770.36,23.25310176]
[1609606371950,6.01438,770.51,770.36,23.25310176]
[1609606372154,13.08238775,770.5,770.36,23.25310176]
[1609606373245,13.08238775,770.5,770.21,26.35351532]
[1609606373645,13.08238775,770.5,770.47,20.17985597]
[1609606374145,6.01438,770.51,770.47,20.17985597]
[1609606375048,6.01438,770.51,770.48,20.18792418]
[1609606375647,4.011,770.68,770.48,20.18792418]
[1609606376046,4.011,770.68,770.67,6.01438]
[1609606376846,4.011,770.68,770.47,23.26878898]
[1609606377346,3.313,770.89,770.54,26.33315009]
[1609606377547,3.674,771.06,770.54,26.33315009]
[1609606377746,2.73555481,771.82,770.54,26.33315009]
[1609606377946,6.01438,771.19,770.58,6.01438]
[1609606378146,9.73738,771.19,770.58,6.01438]
[1609606379548,9.73738,771.19,770.84,23.20636088]
[1609606379948,9.73738,771.19,770.84,29.22074088]
[1609606380748,9.73738,771.19,771.15,20.09102907]
[1609606381347,24.73738,771.19,771.17,20.08524185]
[1609606381547,18.723,771.19,771.17,20.08524185]
[1609606382050,6.01438,771.18,771.07,17.02617397]
[1609606382250,15.0,771.17,771.07,17.02617397]
[1609606383151,15.0,771.16,771.07,17.02617397]
[1609606383953,6.01438,771.08,771.0,20.1091987]
[1609606384152,15.0,771.07,771.0,20.1091987]
[1609606387059,15.0,771.07,770.99,20.11804821]
[1609606388061,6.01438,771.0,770.87,20.13440726]
[1609606388261,15.0,770.99,770.87,20.13440726]
[1609606389965,6.01438,770.88,770.87,20.13440726]
[1609606390164,21.01438,770.88,770.87,20.13440726]
[1609606390364,21.01438,770.88,770.72,20.16628421]
[1609606391365,21.01438,770.88,770.66,17.08945558]
[1609606391964,6.01438,770.67,770.66,17.08945558]
[1609606392165,21.01438,770.67,770.66,17.08945558]
[1609606392867,21.01438,770.67,770.65,20.17575281]
[1609606393467,21.01438,770.67,770.61,20.20067496]
[1609606393869,6.01438,770.67,770.65,20.19548722]
[1609606394873,6.01438,770.67,770.56,6.01438]
[1609606395069,21.01438,770.67,770.52,23.29469026]
[1609606395769,6.01438,770.67,770.52,23.29469026]
[1609606395971,4.343,770.69,770.66,6.01438]
[1609606397072,3.605,770.99,770.66,6.01438]
[1609606397272,15.0,770.99,770.66,6.01438]
[1609606397473,15.0,770.99,770.53,26.39383564]
[1609606397673,19.844,770.99,770.67,26.36880461]
[1609606398073,6.01438,770.68,770.67,26.36880461]
[1609606398275,3.549,770.68,770.67,26.36880461]
[1609606398476,3.549,770.68,770.56,26.38910088]
[1609606399676,3.549,770.68,770.57,26.399791]
[1609606399877,18.549,770.68,770.57,26.399791]
[1609606400477,3.549,770.68,770.57,26.399791]
[1609606400679,3.549,770.68,770.52,29.48890324]
[1609606401578,3.549,770.68,770.56,29.47166985]
[1609606402178,4.844,770.99,770.67,6.01438]
[1609606402580,3.723,771.19,770.67,6.01438]
[1609606402778,2.73535672,772.1,770.67,6.01438]
[1609606402979,15.0,772.09,770.67,10.27038]
[1609606403181,19.053,772.09,770.67,10.27038]
[1609606403380,19.053,772.09,770.84,26.39193913]
[1609606403580,19.053,772.09,770.84,29.40793913]
[1609606403780,19.053,772.09,770.85,15.0]
[1609606403982,19.053,772.09,771.62,17.03989425]
[1609606404181,6.01438,771.83,771.62,17.03989425]
[1609606404379,15.0,771.82,771.62,17.03989425]
[1609606404579,4.053,772.09,771.62,17.03989425]
[1609606405379,19.053,772.09,771.62,17.03989425]
[1609606405580,2.5585,772.08,771.62,17.03989425]
[1609606405780,15.0,772.07,771.62,17.03989425]
[1609606406182,15.0,772.07,771.83,6.01438]
[1609606406781,4.053,772.09,771.83,6.01438]
[1609606407181,15.0,772.08,771.83,6.01438]
[1609606407582,15.0,772.08,771.62,17.03989425]
[1609606407984,15.0,772.08,771.76,17.02118191]
[1609606408184,4.053,772.09,771.76,23.03556191]
[1609606408387,15.0,772.58,771.76,23.03556191]
[1609606409086,15.0,772.58,771.76,17.02118191]
[1609606409285,15.0,772.58,771.34,3.65]
[1609606409286,15.0,772.58,772.04,17.00631007]
[1609606409485,15.0,772.57,772.04,17.00631007]
[1609606409686,18.953,772.57,772.04,17.00631007]
[1609606410085,6.01438,772.05,772.04,17.00631007]
[1609606410285,25.04538,772.05,772.04,17.00631007]
[1609606410987,25.04538,772.05,771.86,17.03455394]
[1609606411988,25.04538,772.05,771.7,17.05202617]
[1609606412187,6.01438,771.71,771.7,17.05202617]
[1609606412387,24.97438,771.71,771.7,17.05202617]
[1609606413689,24.97438,771.71,771.49,17.07944799]
[1609606414089,6.01438,771.5,771.49,17.07944799]
[1609606414288,24.22138,771.5,771.49,17.07944799]
[1609606414690,24.22138,771.5,771.34,17.12509701]
[1609606415592,15.0,771.49,771.34,17.12509701]
[1609606415795,15.0,771.49,771.38,17.12094563]
[1609606416194,6.01438,771.39,771.38,17.12094563]
[1609606416394,21.01438,771.39,771.34,17.11801747]
[1609606417698,21.01438,771.39,771.3,17.12227202]
[1609606418099,6.01438,771.31,771.3,17.12227202]
[1609606418299,24.22238,771.31,771.3,17.12227202]
[1609606418997,24.22238,771.31,771.23,17.13321346]
[1609606420301,24.22238,771.31,771.29,17.12066331]
[1609606421403,9.22238,771.31,771.29,17.12066331]
[1609606421802,9.22238,771.31,771.18,20.21852855]
[1609606422003,3.208,771.31,771.18,20.21852855]
[1609606422202,3.208,771.31,771.3,6.01438]
[1609606422708,6.01438,771.7,771.3,6.01438]
[1609606424003,15.0,771.69,771.3,6.01438]
[1609606424203,6.01438,771.59,771.18,20.21852855]
[1609606424404,15.0,771.58,771.18,20.21852855]
[1609606425403,3.96,771.71,771.18,20.21852855]
[1609606425604,15.0,772.04,771.18,20.21852855]
[1609606425804,15.0,771.7,771.18,20.21852855]
[1609606426005,18.498,771.7,771.18,20.21852855]
[1609606426205,6.01438,771.56,771.34,6.01438]
[1609606426604,18.498,771.7,771.34,6.01438]
[1609606426805,3.498,771.7,771.34,6.01438]
[1609606427605,3.498,771.7,771.46,23.28405662]
[1609606428207,6.01438,771.68,771.49,6.01438]
[1609606428609,15.0,771.67,771.49,6.01438]
[1609606428808,15.0,771.67,771.59,23.27184651]
[1609606430109,15.0,771.67,771.05,31.02912867]
[1609606430110,15.0,771.67,771.62,26.20082834]
[1609606430309,15.0,771.66,771.62,26.20082834]
[1609606431311,15.0,771.69,771.62,26.20082834]
[1609606431609,15.0,771.69,771.62,20.18644834]
[1609606432209,3.498,771.7,771.67,6.01438]
[1609606432411,6.01438,771.86,771.67,6.01438]
[1609606432912,21.01438,771.86,771.67,6.01438]
[1609606433513,21.01438,771.86,771.74,17.0215096]
[1609606433914,6.01438,771.86,771.74,17.0215096]
[1609606434615,6.01438,771.86,771.71,17.02949689]
[1609606434814,10.56038,771.86,771.71,17.02949689]
[1609606435016,15.0,771.85,771.71,17.02949689]
[1609606435414,15.0,771.85,771.76,17.01467641]
[1609606435618,4.546,771.86,771.76,17.01467641]
[1609606436214,4.546,771.86,771.85,6.01438]
[1609606438816,19.546,771.86,771.85,6.01438]
[1609606439018,19.546,771.86,771.75,20.09037409]
[1609606440017,4.546,771.86,771.75,20.09037409]
[1609606440217,6.01438,771.81,771.73,23.14272394]
[1609606440416,3.603,771.81,771.73,23.14272394]
[1609606441620,15.0,771.8,771.73,23.14272394]
[1609606442123,15.0,771.8,771.77,12.92305381]
[1609606443220,15.0,771.8,771.72,17.07562629]
[1609606444223,6.01438,771.73,771.72,17.07562629]
[1609606444423,21.01438,771.73,771.6,17.08984385]
[1609606444822,15.0,771.73,771.6,17.08984385]
[1609606445425,15.0,771.8,771.67,17.08070348]
[1609606445624,3.603,771.81,771.67,17.08070348]
[1609606445824,4.031,772.05,771.67,17.08070348]
[1609606446024,15.0,772.25,771.67,17.08070348]